Cogmind - Beta 15 @@@ ROGUE MODE // 2025.08.22 @ 01:46:27 // Winter2019/RPGLIKE Player: bugsniper Result: Destroyed by H-66 Slayer with Gauss Rifle Performance ------------- Evolutions (4) 2000 Regions Visited (6) 1200 Robots Destroyed (90) 450 Value Destroyed (3465) 3465 Prototype IDs (13) 260 Alien Tech Used (0) 0 Bonus (1671) 1671 TOTAL SCORE: 9046 Bonus ------- High Alert Combat Kills 68 Follower Combat Kills 803 Registered with UFD 300 Met Optimus in HQ 500 Cogmind --------- Core Integrity 0/900 Matter 176/300 Energy 230/230 System Corruption 5% Temperature Hot (247) Movement Treading (165) Location -6/Factory Parts ------- > --- POWER (2) -------- Light Angular Momentum Engine Meta Core > --- PROPULSION (2+1) - Light Treads Armored Treads (+) Medium Treads > --- UTILITY (3) ------ Experimental Terrain Scanner > --- WEAPON (3+1) ----- Heavy Machine Gun Advanced Assault Cannon Advanced Assault Cannon Power Sword (+) > --- INVENTORY (3) ---- Deep Structural Scanner Makeshift Light Armor Plating DRS Beacon (Ready) Peak State ------------ > --- POWER ------------ Meta Core > --- PROPULSION ------- Armored Treads Medium Treads Cooled Aerolev Unit > --- UTILITY ---------- Experimental Terrain Scanner Surveybot 17 Chip Hardened Heavy Armor Plating > --- WEAPON ----------- Enhanced Autogun Flak Gun Heavy Machine Gun Power Sword > --- INVENTORY -------- Deep Structural Scanner Makeshift Light Armor Plating DRS Beacon [Rating: 69] Favorites ----------- Power Light Angular Momentum Engine Engine Light Angular Momentum Engine Power Core Meta Core Propulsion Light Treads Treads Light Treads Leg Aluminum Leg Hover Unit Cooled Aerolev Unit Utility Scrap Shield Device Experimental Terrain Scanner Processor Targeting Computer Protection Scrap Shield Weapon Heavy Battle Rifle Energy Gun EM Pulse Gun Ballistic Gun Heavy Battle Rifle Ballistic Cannon Battle Cannon Launcher Rocket Launcher Special Weapon Mining Laser Slashing Weapon Power Sword Build | -11 -10 -10 -10 -8 -8 -6 ------- Run | Yrd Mat Min Sub Rec Scr Fac Slots Evolved 6 | 1 2 1 1 . . 1 Power 1 | . . 1 . . . . Propulsion 1 | . 1 . . . . . Utility 2 | . 1 . . . . 1 Weapon 2 | 1 . . 1 . . . Parts Attached 49 | 1 14 7 8 . 10 9 Power 8 | . 1 3 2 . . 2 Engine 5 | . . 2 1 . . 2 Core 3 | . 1 1 1 . . . Reactor . | . . . . . . . Propulsion 8 | . 5 . . . . 3 Treads 5 | . 3 . . . . 2 Leg 2 | . 2 . . . . . Wheel . | . . . . . . . Hover 1 | . . . . . . 1 Flight . | . . . . . . . Utility 12 | . 4 1 1 . 5 1 Device 1 | . . . . . 1 . Storage . | . . . . . . . Processor 3 | . 2 . . . 1 . Hackware . | . . . . . . . Protection 8 | . 2 1 1 . 3 1 Artifact . | . . . . . . . Weapon 21 | 1 4 3 5 . 5 3 Energy Gun 3 | 1 2 . . . . . Energy Cannon . | . . . . . . . Ballistic Gun 11 | . 2 1 3 . 4 1 Ballistic Cannon 3 | . . . 1 . . 2 Launcher 2 | . . 1 1 . . . Special Weapon 1 | . . 1 . . . . Impact Weapon . | . . . . . . . Slashing Weapon 1 | . . . . . 1 . Piercing Weapon . | . . . . . . . Special Melee Weapon . | . . . . . . . Unidentified Prototypes 3 | . . . 1 . 1 1 Parts Lost 2 | . . . . . . 2 Power . | . . . . . . . Propulsion . | . . . . . . . Utility 2 | . . . . . . 2 Weapon . | . . . . . . . Highest Loss Streak 1 | . . . . . . 1 To Critical Strikes . | . . . . . . . Average Backups 2 | . . 2 2 3 2 2 Power . | . . . . . . . Propulsion . | . . . . . . . Utility . | . . . 1 1 . 2 Weapon 1 | . . 1 1 2 1 . Tool/Special . | . . . . . . . Unused Backups 10 | . 2 1 2 . 4 1 Power 1 | . 1 . . . . . Propulsion 1 | . . 1 . . . . Utility 5 | . 1 . 2 . 1 1 Weapon 3 | . . . . . 3 . Tool/Special . | . . . . . . . Average Slot Usage (%) 75 | . 99 100 70 66 70 87 Engine 7 | . 6 1 9 8 8 4 Core 8 | . 7 20 8 8 8 7 Treads 17 | . 11 25 17 16 16 21 Leg 1 | . 15 . . . . . Processor 3 | . 13 12 . . 2 4 Protection 8 | . 13 12 8 8 7 7 Energy Gun 1 | . 22 . . . . . Ballistic Gun 18 | . 6 25 16 16 21 23 Ballistic Cannon 4 | . . . 8 8 2 . Peak Build Rating 69 | 4 9 16 33 33 57 69 Average Rating 31 | 3 7 11 30 33 39 61 On Entrance 22 | 3 4 9 16 33 33 57 Naked Turns . | . . . . . . . Heaviest Build 56 | 7 12 21 48 43 45 56 Greatest Support 68 | 10 40 40 40 40 40 68 Greatest Overweight (x) 2 | . . . 1 1 1 2 Average Overweight (x) . | . . . . 1 . . Largest Inventory Capacity 3 | . 2 3 3 3 3 3 Average Capacity 2 | . . 2 3 3 3 3 Most Carried 3 | . 2 3 3 3 3 3 Average Carried 2 | . . 2 2 3 2 3 Final Capacity 3 | . 2 3 3 3 3 3 Final Carried 3 | . 2 3 3 3 3 3 Class Distribution -------------------- 44% | Tank 26% | Commander-Tank 15% | Mutant 4% | Commander-Skirmisher Dominant Class ---------------- Mutant | -10/Materials Mutant | -10/Mines Tank | -10/Subcaves Tank | -8/Recycling Commander-Tank | -8/Scraptown Scavenger-Tank | -6/Factory Resources | -11 -10 -10 -10 -8 -8 -6 ----------- Run | Yrd Mat Min Sub Rec Scr Fac Matter Collected 2931 | 200 257 137 806 122 638 771 Remotely . | . . . . . . . Salvage Created 3082 | . 400 58 759 174 1167 524 Parts 184 | . 30 11 40 9 59 35 Haulers Intercepted 2 | . 2 . . . . . Recyclers Shooed 6 | . 3 . . 1 . 2 Parts Field Recycled . | . . . . . . . Retrieved Matter . | . . . . . . . Parts Self-Destructed 24 | . . . 21 . 3 . Prevented . | . . . . . . . Kills | -11 -10 -10 -10 -8 -8 -6 ------- Run | Yrd Mat Min Sub Rec Scr Fac Combat Hostiles Destroyed 81 | . 8 5 25 3 22 18 Guns 64 | . 7 2 12 3 22 18 Cannons 7 | . . . 7 . . . AOE 10 | . 1 3 6 . . . Classes Destroyed 19 | . 5 . 2 3 6 3 Builder 4 | . 2 . . 2 . . Hauler 2 | . 2 . . . . . Recycler 1 | . 1 . . . . . Turret 2 | . . . 2 . . . Swarmer 14 | . 3 3 4 . . 4 Grunt 18 | . 5 2 3 . . 8 Brawler 3 | . . . . 1 . 2 Sentry 1 | . . . . . . 1 Demolisher 1 | . . . . 1 . . Specialist 1 | . . . . . . 1 Hunter 2 | . . . . 1 . 1 Programmer 1 | . . . . . . 1 Subdweller 18 | . . . 18 . . . Federalist 2 | . . . . . 2 . Explorer 3 | . . . . . 3 . Ranger 1 | . . . . . 1 . Guru 1 | . . . . . 1 . Scrapper 14 | . . . . . 14 . Mutant 1 | . . . . . 1 . Best Kill Streak 5 | . 5 3 3 5 3 4 Combat Bots Only 4 | . 3 3 3 3 3 4 Max Kills in Single Turn 3 | . 1 3 2 2 1 1 Gunslinging . | . . . . . . . Exploded 3 | . 1 3 2 . . . Melee . | . . . . . . . Uniques/NPCs Destroyed . | . . . . . . . Combat | -11 -10 -10 -10 -8 -8 -6 -------- Run | Yrd Mat Min Sub Rec Scr Fac Hostile Shots Fired 383 | . 51 15 95 9 38 175 Missed 103 | . 17 4 38 3 8 33 Hits 280 | . 34 11 57 6 30 142 Melee 8 | . . . . . 2 6 Projectile 272 | . 34 11 57 6 28 136 AOE 3 | . . . 2 . . 1 Critical Strikes 12 | . 2 . . . 3 7 Part Disruptions 1 | . . . . . . 1 Damage Taken 4621 | . 441 153 958 91 428 2550 Core 3094 | . 336 116 580 71 329 1662 Absorbed by Shields 129 | . . . . . 106 23 Redirected to Core 2667 | . 237 91 540 54 274 1471 Ignored by Resistances 399 | . . 9 34 . 66 290 Core Remaining (%) 77 | 100 . . . . 54 . Volleys Fired 227 | . 48 9 61 6 43 60 Largest 3 | . 2 2 3 3 3 3 Hottest 110 | . 90 100 94 94 89 110 Shots Fired 568 | . 87 15 147 18 127 174 Gun 487 | . 87 12 86 12 127 163 Cannon 69 | . . . 52 6 . 11 Launcher 10 | . . 1 9 . . . Special 2 | . . 2 . . . . Kinetic 491 | . 18 12 142 18 127 174 Thermal 32 | . 30 2 . . . . Explosive 6 | . . 1 5 . . . Electromagnetic 39 | . 39 . . . . . Robot Hit Streak 36 | . 9 15 36 14 10 10 Robot Miss Streak 8 | . 4 . 2 3 8 8 Penetration Max . | . . . . . . . Secondary Targets 8 | . 3 . . . 2 3 Max Gunslinging Chain 1 | . 1 . . . 1 1 Shots Hit Robots 371 | . 48 11 94 10 84 124 Core Hits 240 | . 21 9 42 7 78 83 Critical Kills 2 | . . . 2 . . . Critical Parts Destroyed 1 | . . . . . 1 . Critical Strikes 8 | . 2 . 3 1 1 1 Destroy 3 | . . . 2 . 1 . Blast 3 | . . . 1 1 . 1 Corrupt 2 | . 2 . . . . . Melee Attacks 5 | . . . . . 4 1 Impact . | . . . . . . . Slashing 5 | . . . . . 4 1 Piercing . | . . . . . . . Sneak Attacks . | . . . . . . . Combat Hostiles . | . . . . . . . Follow-up Attacks . | . . . . . . . Damage Inflicted 7905 | . 713 278 2507 263 1514 2630 Guns 5779 | . 614 136 1006 171 1514 2338 Cannons 1086 | . . . 702 92 . 292 Explosions 1031 | . 93 139 799 . . . Melee . | . . . . . . . Ramming 9 | . 6 3 . . . . Kinetic 6668 | . 84 136 2041 263 1514 2630 Thermal 281 | . 281 . . . . . Explosive 605 | . . 139 466 . . . Electromagnetic 342 | . 342 . . . . . Impact . | . . . . . . . Slashing . | . . . . . . . Piercing . | . . . . . . . Highest Corruption 5 | . . . . . . 5 Average Corruption 3 | . . . . . . 3 Corruption Purged . | . . . . . . . Corruption Blocked . | . . . . . . . Effects 6 | . . . . . . 6 Matter Fused 1 | . . . . . . 1 Heat Flow Errors 1 | . . . . . . 1 Energy Discharges 1 | . . . . . . 1 Misfires 1 | . . . . . . 1 Weapon Failures 2 | . . . . . . 2 Overload Shots . | . . . . . . . Overflow Damage 40 | . . . 40 . . . Projectiles . | . . . . . . . Explosions 40 | . . . 40 . . . Melee . | . . . . . . . Knockbacks 14 | . . . 7 . . 7 Impact . | . . . . . . . Kinetic 11 | . . . 7 . . 4 Secondary 3 | . . . . . . 3 Self-Inflicted Damage 65 | . . . 65 . . . Shots 2 | . . . 2 . . . Rammed 1 | . . 1 . . . . Targets Rammed 3 | . 2 1 . . . . Kicked 1 | . 1 . . . . . Crushed 1 | . 1 . . . . . Highest Temperature 468 | . 468 136 16 287 312 427 Average Temperature 118 | . 135 42 5 153 93 154 Received Heat Transfer 1258 | . 246 51 162 . 312 487 Effects 14 | . 4 . . 3 . 7 Shutdowns 3 | . 1 . . . . 2 Energy Bleed 2 | . . . . . . 2 Interference 5 | . . . . 3 . 2 Matter Decay 2 | . 1 . . . . 1 Short Circuit 1 | . 1 . . . . . Damage (minor) 1 | . 1 . . . . . Siege Activations . | . . . . . . . Martial Activations . | . . . . . . . Shielding Activations . | . . . . . . . Robots Disrupted . | . . . . . . . Combat Hostiles . | . . . . . . . Robots Corrupted . | . . . . . . . Combat Hostiles . | . . . . . . . Parts Fried . | . . . . . . . Impact Corruptions . | . . . . . . . Robots Melted . | . . . . . . . Combat Hostiles . | . . . . . . . Parts Melted 14 | . . . 1 . 13 . Heat Transferred 608 | . 608 . . . . . Parts Sabotaged . | . . . . . . . Parts Stolen . | . . . . . . . Parts Stripped . | . . . . . . . Power Chain Reactions 2 | . 2 . . . . . Alert | -11 -10 -10 -10 -8 -8 -6 ------- Run | Yrd Mat Min Sub Rec Scr Fac Maximum Alert Level 2 | . . . . . . 2 Low Security (%) 87 | 100 100 100 . 100 . 39 Level 1 4 | . . . . . . 23 Level 2 7 | . . . . . . 36 Level 3 . | . . . . . . . Level 4 . | . . . . . . . Level 5 . | . . . . . . . High Security . | . . . . . . . Max Security . | . . . . . . . Peak Influence 503 | . 129 81 . 67 . 503 Initial 67 | . . . . 67 . . Average 69 | . 33 9 . 13 . 259 Influence Increases 1655 | . 339 133 270 83 . 830 Destroy 0b10 Robot/C 1000 | . 160 100 180 60 . 500 Destroy 0b10 Robot/NC 35 | . 25 . . 10 . . Destroy Leader 214 | . 44 20 30 . . 120 Allied During Kill 66 | . . 4 . . . 62 Successful Hack 30 | . 13 . . 10 . 7 Disable Machine 180 | . 75 . . . . 105 Destroy Structure 25 | . 7 9 . 3 . 6 Lose Combat Pursuer 105 | . 15 . 60 . . 30 Influence Decreases 1162 | . 339 133 130 223 . 337 Entered New Map 73 | . . . . 73 . . Time Decay 1059 | . 339 133 130 150 . 307 Lost Part 20 | . . . . . . 20 Lost Ally 10 | . . . . . . 10 Squads Dispatched 12 | . . . . . . 12 Investigation . | . . . . . . . Extermination 1 | . . . . . . 1 Reinforcement 5 | . . . . . . 5 Assault 3 | . . . . . . 3 Garrison 3 | . . . . . . 3 Intercept . | . . . . . . . Searches Triggered . | . . . . . . . Construction Impeded 2 | . . . . . . 2 Haulers Reinforced . | . . . . . . . Active Scanning Responses . | . . . . . . . Cargo Convoy Interrupts 1 | . . . . . . 1 Stealth | -11 -10 -10 -10 -8 -8 -6 --------- Run | Yrd Mat Min Sub Rec Scr Fac Distress Signals 1 | . . . . . . 1 Communications Jammed . | . . . . . . . Distress Signals . | . . . . . . . Times Spotted 134 | . 17 5 32 2 33 45 Peak Tracking Total 13 | . 5 3 5 2 3 13 Tactical Retreats 4 | . 1 . 1 . . 2 Traps | -11 -10 -10 -10 -8 -8 -6 ------- Run | Yrd Mat Min Sub Rec Scr Fac Traps Triggered 6 | . 3 1 2 . . . Indirectly . | . . . . . . . Trap Hack Attempts . | . . . . . . . Triggered . | . . . . . . . Disarmed . | . . . . . . . Reprogrammed . | . . . . . . . Reused . | . . . . . . . Traps Extracted . | . . . . . . . Installed . | . . . . . . . Triggered . | . . . . . . . Machines | -11 -10 -10 -10 -8 -8 -6 ---------- Run | Yrd Mat Min Sub Rec Scr Fac Machines Disabled 16 | . 5 . 1 . 3 7 Max in Single Turn 1 | . 1 . 1 . . 1 Garrison Access 1 | . . . . . . 1 Machines Repaired . | . . . . . . . Machines Dismantled . | . . . . . . . Machines Sabotaged . | . . . . . . . Overloaded Fab Kills . | . . . . . . . Hacking | -11 -10 -10 -10 -8 -8 -6 --------- Run | Yrd Mat Min Sub Rec Scr Fac Machines Accessed 14 | . 6 1 1 4 1 1 Terminals 10 | . 6 . . 3 . 1 Fabricators . | . . . . . . . Repair Stations . | . . . . . . . Recycling Units . | . . . . . . . Scanalyzers . | . . . . . . . Garrison Access . | . . . . . . . Total Hacks 38 | . 16 1 5 11 2 3 Successful 24 | . 8 1 5 7 2 1 Failed 14 | . 8 . . 4 . 2 Catastrophic . | . . . . . . . Database Lockouts . | . . . . . . . Manual . | . . . . . . . Terminals 25 | . 16 . . 6 . 3 Fabricators . | . . . . . . . Repair Stations . | . . . . . . . Recycling Units . | . . . . . . . Scanalyzers . | . . . . . . . Garrison Access . | . . . . . . . Terminal Hacks 24 | . 8 1 5 7 2 1 Record 12 | . . . 5 5 2 . Prototype ID Bank 2 | . 1 . . 1 . . Open Door 1 | . . 1 . . . . Branch Access Points 1 | . . . . . . 1 Emergency Access Points 2 | . 2 . . . . . Locate Traps 3 | . 3 . . . . . Maintenance Status 1 | . 1 . . . . . Zone Layout 2 | . 1 . . 1 . . Fabricator Hacks . | . . . . . . . Repair Station Hacks . | . . . . . . . Recycling Unit Hacks . | . . . . . . . Scanalyzer . | . . . . . . . Garrison Access Hacks . | . . . . . . . Unauthorized Hacks . | . . . . . . . Terminals . | . . . . . . . Fabricators . | . . . . . . . Repair Stations . | . . . . . . . Recycling Units . | . . . . . . . Scanalyzers . | . . . . . . . Garrison Access . | . . . . . . . Data Cores Recovered . | . . . . . . . Used . | . . . . . . . Hacking Detections 6 | . 2 . . 3 . 1 Full Trace Events 1 | . 1 . . . . . Feedback Events . | . . . . . . . Feedback Blocked . | . . . . . . . Robot Schematics Acquired . | . . . . . . . Robots Built . | . . . . . . . Authchips . | . . . . . . . Time . | . . . . . . . Total Robot Build Rating . | . . . . . . . Part Schematics Acquired . | . . . . . . . Parts Built . | . . . . . . . Authchips . | . . . . . . . Time . | . . . . . . . Total Part Build Rating . | . . . . . . . Parts Repaired . | . . . . . . . Time . | . . . . . . . Parts Recycled . | . . . . . . . Recycled Matter . | . . . . . . . Retrieved Matter . | . . . . . . . Retrieved Components . | . . . . . . . Parts Scanalyzed . | . . . . . . . Part Schematics Acquired . | . . . . . . . Parts Damaged . | . . . . . . . Bothacking | -11 -10 -10 -10 -8 -8 -6 ------------ Run | Yrd Mat Min Sub Rec Scr Fac Used RIF Installer . | . . . . . . . Robots Hacked . | . . . . . . . Non-combat . | . . . . . . . Combat . | . . . . . . . Robot Hacks Applied . | . . . . . . . Relay Couplers Released 1 | . . . . . . 1 Machine Destruction 1 | . . . . . . 1 Fabnet Peak Effective % . | . . . . . . . Robots Rewired 10 | . . . . 10 . . Allies Hacked . | . . . . . . . Hacks Repelled . | . . . . . . . Allies | -11 -10 -10 -10 -8 -8 -6 -------- Run | Yrd Mat Min Sub Rec Scr Fac Total Allies 12 | . . 1 . 10 1 . Largest Group 10 | . . 1 . 10 10 2 Highest-Rated Group 164 | . . 31 . 146 164 92 Highest-Rated Ally 66 | . . 31 . 34 66 66 Total Orders . | . . . . . . . Ally Attacks 134 | . . . . . 70 64 Total Damage 2831 | . . . . . 1592 1239 Kills 24 | . . . . . 17 7 Allies Corrupted . | . . . . . . . Allies Melted 3 | . . . . . 3 . Intel | -11 -10 -10 -10 -8 -8 -6 ------- Run | Yrd Mat Min Sub Rec Scr Fac Active Infowar (turns) 1821 | . . . . . 1009 812 Terrain 1821 | . . . . . 1009 812 Robot Analysis Total . | . . . . . . . Derelict Logs Recovered 7 | . . 1 3 . 3 . Drone Launches . | . . . . . . . Drone Recoveries . | . . . . . . . Exploration | -11 -10 -10 -10 -8 -8 -6 ------------- Run | Yrd Mat Min Sub Rec Scr Fac Turns Passed 15208 | 7 1157 1103 6433 799 4897 812 Spaces Moved 7143 | 5 711 648 2722 278 2445 334 Core . | . . . . . . . Treads 6646 | . 219 648 2722 278 2445 334 Legs 497 | 5 492 . . . . . Wheels . | . . . . . . . Hover . | . . . . . . . Flight . | . . . . . . . Fastest Speed 120 | 120 120 160 160 240 160 160 Average Speed 195 | 120 132 160 224 240 190 167 Slowest Speed 320 | 120 160 160 240 240 240 320 Overloaded Moves . | . . . . . . . Propulsion Burnouts . | . . . . . . . Robots Hopped . | . . . . . . . Potential Cave-ins . | . . . . . . . Cave-ins Triggered . | . . . . . . . Exploration Rate (%) 62 | 2 90 99 94 54 91 9 Regions Visited 6 Branch Regions 4 Pre-discovered Areas 1 | . . . . . 1 . Known Exits Taken 1 | . . . 1 . . . Unknown Exits Taken 5 | 1 1 1 . 1 1 . Scrap Searched 17 | . . 1 8 . 8 . Spaces Dug 66 | . . 12 53 . . 1 Terrain Destroyed 128 | . 8 12 103 3 1 1 Melee 1 | . . . . . . 1 Projectile 9 | . . 2 3 3 1 . AOE 118 | . 8 10 100 . . . Terrain Rammed . | . . . . . . . Walls Destroyed . | . . . . . . . Machines Disabled . | . . . . . . . Actions | -11 -10 -10 -10 -8 -8 -6 --------- Run | Yrd Mat Min Sub Rec Scr Fac Total 7960 | 5 838 694 2945 398 2600 480 Wait 232 | . 34 10 109 17 41 21 Move 7137 | 4 710 647 2721 277 2444 334 Hop . | . . . . . . . Pick Up 27 | . 3 4 6 . 14 . Fast Attach 38 | 1 13 2 5 . 8 9 Attach 6 | . . 1 1 . 4 . Detach . | . . . . . . . Swap 20 | . 3 8 8 . . 1 Drop 51 | . 9 6 11 . 18 7 Fire 227 | . 48 9 61 6 43 60 Melee 5 | . . . . . 4 1 Ram . | . . . . . . . Kick 1 | . 1 . . . . . Crush 2 | . 1 1 . . . . Escape Stasis . | . . . . . . . Rewire 98 | . . . . 98 . . Trap . | . . . . . . . Miscellaneous 116 | . 16 6 23 . 24 47 Route ------- -11/Scrapyard -10/Materials (discovered 4 exits: [*Mat x3] / *Min) -10/Mines (discovered 3 exits: [*Mat x2] / *Sub) -10/Subcaves (discovered 3 exits: *Mat x2 / *Rec) -8/Recycling -8/Scraptown (discovered 2 exits: *Fac x2) -6/Factory (discovered 3 exits: [*Fac] / Low x2) History --------- Turn | Location | Event 1 | -11/Scrapyard | Upgraded with Weapon slot (x1) 1 | -11/Scrapyard | Discovered new exit (range 1) 8 | -11/Scrapyard | Entered Materials 55 | -10/Materials | Upgraded with Propulsion slot (x1) 65 | -10/Materials | Upgraded with Utility slot (x1) 81 | -10/Materials | Discovered new exit (range 5) 116 | -10/Materials | Discovered new exit (range 8) 308 | -10/Materials | Build established: Mutant 375 | -10/Materials | Discovered new exit (range 5) 759 | -10/Materials | Discovered new exit (range 5) 1165 | -10/Materials | Entered Mines 1167 | -10/Mines | Reached level 2 1376 | -10/Mines | Received a Rocket Launcher from a helpful Derelict 1472 | -10/Mines | Upgraded with Power slot (x1) 1508 | -10/Mines | Learned 4 Materials zone layouts 1508 | -10/Mines | Discovered new exit (range 10) 1599 | -10/Mines | Received a Mining Laser from a helpful Derelict 1733 | -10/Mines | Discovered new exit (range 10) 2133 | -10/Mines | Met a Derelict who couldn't figure out how to use a Trap Extractor 2261 | -10/Mines | Discovered new exit (range 5) 2268 | -10/Mines | Entered Subcaves 2269 | -10/Subcaves | Approached by a straggling Scientist 2270 | -10/Subcaves | Reached level 3 2329 | -10/Subcaves | Learned Materials security intel 2332 | -10/Subcaves | Upgraded with Weapon slot (x1) 2372 | -10/Subcaves | Shifting Twisted Machinery released Barrage Gun 2418 | -10/Subcaves | Shifting Twisted Machinery released Shrapnel Trap 2560 | -10/Subcaves | Learned 8 Materials zone layouts 2565 | -10/Subcaves | Identified exit to Materials 2729 | -10/Subcaves | Build established: Tank 2960 | -10/Subcaves | Visited Clippyterm 2964 | -10/Subcaves | Identified exit to Recycling 2964 | -10/Subcaves | Learned Research machine intel 3529 | -10/Subcaves | Build established: Derelict-Tank 3548 | -10/Subcaves | A Subdweller sparked back to life 3548 | -10/Subcaves | A Subdweller sparked back to life 3548 | -10/Subcaves | A Subdweller sparked back to life 3570 | -10/Subcaves | Found Prototype Power Core 3570 | -10/Subcaves | Identified Meta Core 3572 | -10/Subcaves | Attached Meta Core, gained temporary slots: Propulsion, Utility, Weapon 3865 | -10/Subcaves | Build established: Tank 3970 | -10/Subcaves | Shifting Twisted Machinery released Flamer 4086 | -10/Subcaves | Ambushed by Subdweller buried in earth 4252 | -10/Subcaves | Shifting Twisted Machinery released Barrage Gun 4289 | -10/Subcaves | Shifting Twisted Machinery released Sub. Laser 4511 | -10/Subcaves | Core integrity fell below 50% 4725 | -10/Subcaves | Disturbed a concealed Subdweller 5494 | -10/Subcaves | Shifting Twisted Machinery released Riot Gun 7159 | -10/Subcaves | Reached level 4 8701 | -10/Subcaves | Entered Recycling 9055 | -8/Recycling | Core integrity fell below 20% 9399 | -8/Recycling | Scanned before Scraplab entrance 9430 | -8/Recycling | Build established: Commander-Tank 9432 | -8/Recycling | Entered Scraplab 9452 | -8/Recycling | Discovered new exit (range 2) 9500 | -8/Recycling | Entered Scraptown 9500 | -8/Scraptown | Accompanied by 10 allies 9502 | -8/Scraptown | Reached level 5 9582 | -8/Scraptown | Visited Comm Corps 9721 | -8/Scraptown | Visited Spacefarers 9832 | -8/Scraptown | Scanned Subdweller tech in exchange for log data 9836 | -8/Scraptown | Learned Research security intel 9839 | -8/Scraptown | Learned location of Zion (-6) 9841 | -8/Scraptown | Learned Research emergency access door positions 9875 | -8/Scraptown | Discovered new exit (range 7) 10524 | -8/Scraptown | Heard Great Nut preacher, LISTEN AND RECITE! 11140 | -8/Scraptown | Visited Bundlers 11380 | -8/Scraptown | Visited Junk Repository 11442 | -8/Scraptown | Visited UFD Registry 11452 | -8/Scraptown | Registered with UFD as "Shortsourcer" 11502 | -8/Scraptown | Visited Botcube Research 11560 | -8/Scraptown | Visited Infowarlord's Domain 11596 | -8/Scraptown | Visited Junk Repository 11756 | -8/Scraptown | Delivered Scrap Shield to a Scientist 12041 | -8/Scraptown | Visited Research Penetration Think Tank 12050 | -8/Scraptown | Build established: Commander-Gunner 12086 | -8/Scraptown | Visited Derelict Rescue Squad 12119 | -8/Scraptown | Found DRS Beacon 12141 | -8/Scraptown | Visited Cartography Club 12249 | -8/Scraptown | Found Surveybot 17 Chip 12422 | -8/Scraptown | Build established: Commander-Tank 12485 | -8/Scraptown | Visited DA-N13 Charitable Foundation 12492 | -8/Scraptown | Found DCF Scrap (26 items) 12615 | -8/Scraptown | Visited Abandonware Association 12679 | -8/Scraptown | Visited Chapter 10 12850 | -8/Scraptown | Visited Science Testing Area 13043 | -8/Scraptown | Discovered new exit (range 5) 13388 | -8/Scraptown | Found Exp. Terrain Scanner 13675 | -8/Scraptown | Build established: Commander-Skirmisher 13676 | -8/Scraptown | Met Optimus 13676 | -8/Scraptown | Accepted into 0bPrime 13800 | -8/Scraptown | Civil war broke out across Scraptown 13859 | -8/Scraptown | Lost 4 allies 13864 | -8/Scraptown | Found Botcube 13895 | -8/Scraptown | Optimus destroyed in the chaos of civil war 13899 | -8/Scraptown | Botcube activated 13936 | -8/Scraptown | Lost 3 allies 14108 | -8/Scraptown | Lost 14 allies 14225 | -8/Scraptown | Lost 7 allies 14272 | -8/Scraptown | Found Deep Structural Scanner 14397 | -8/Scraptown | Entered Factory 14397 | -6/Factory | Accompanied by 2 allies 14399 | -6/Factory | Reached level 6 14424 | -6/Factory | Discovered new exit (range 26) 14431 | -6/Factory | Build established: Tank 14523 | -6/Factory | Core integrity fell below 50% 14543 | -6/Factory | Garrison activated, responded to threat 14555 | -6/Factory | Upgraded with Utility slot (x1) 14561 | -6/Factory | Reached level 7 14573 | -6/Factory | Core integrity fell below 20% 14840 | -6/Factory | Reached level 8 14891 | -6/Factory | Build established: Scavenger-Tank 15082 | -6/Factory | Identified exit to Lower Caves 15097 | -6/Factory | First assault squad dispatched 15152 | -6/Factory | Reached level 9 15197 | -6/Factory | Cargo convoy interrupted 15209 | -6/Factory | Destroyed by H-66 Slayer with Gauss Rifle Last Messages --------------- 15202_ Penetrated by Slug. 15202_ Slug penetrates Mutated Botcube. 15202_ Mutated Botcube suffers critical hit (Destroy). 15204_ P-60 Hacker resets U-05 Engineer, system corruption cleaned. 15204_ System corrupted: Adv. Assault Cannon jammed. 15204_ X-72 Disruptor Imp. VSS Leg blasted off. 15204_ X-72 Disruptor knocked back. 15205_ Penetrated by Slug. 15205_ K-01 Serf cleans the Subcomponent Replicator. 15206_ Penetrated by Slug. 15208_ Upgraded: Melee Accuracy (+10) 15208_ X-72 Disruptor knocked back. 15208_ Penetrated by Slug. 15209_ Hrd. Heavy Armor Plating destroyed. 15209_ Slug penetrates P-60 Hacker. 15209_ Penetrated by Slug. Map ----- +----------------------------------------------------+ | ?????????????????????????????????????????????????? | | ??????????????????????????????#??????????????????? | | ???????????????????#????#????????????????????????? | | ?????????????????????????????????#???????????????? | | ?????????????????????????????#???????????????????? | | ???????????????????????????????????????????????? ? | | ?????????????????????????????????????????????????? | | ???????????????? ????#???????????????????????????? | | ?????????????????????#???????????????????????????? | | ??????????????????????????????????? ????????? ??? | | ???????#??????????????#?????+???????#????????????? | | ????????????????????????#?? ???#????????#????????? | | ????????????????"???????#? ??????????????????????? | | ????????????????"?????????? ????????????? ??????? | | ????????????#? ^ ????????????????#???#??????????" | | ?????????#???? ///???????????????????????????????? | | ????????????#? /// ? ?????? ????????????#???#????? | | ???????????????// ???#???????#?#?????????????? | | ??????????????? ??????????? ??????????? ??? | | ??????#?????#?? "" ??????????????????????????? | | ????? ???#?## F % ?????#????????????????????? | | ?# ?????????? " ???#?????????????????????? | | ????????????# " g ?????????? ??????????????? | | ?? ????????# x hx###################?????? | | ?????????? i hpx= % M ?????? | | ???????#???????# h ip @ ????? | | ?????????????#???######## ! u ?????? | | ???????????#?#???#?????## !m R = ?????? | | ????????????????????????# k !! ?? ??? | | ??? ???????????#????????# k""" """ """ !! ?????? | | ????"????? #?????######## "" """ """??!? ??? ??? | | ???????"???#???#?# "" """ ""? ?????????"? | | ?????????????#???# "" "" ???#??"?? | | ????"????????????# "" "" ???????? | | ????"??????#??#??# R ? ?????? | | #???????? ?#?????# u% ???????? | | ????? ?????#?#?## ###+######? ???????? | | ??????#?########## #?????????????# ???? | | ??????? #?????????? ??? "??? | | ????? ? ! #???? ?????????????? | | ????? + ?????????????????? | | ? ???? / # "????????????????? | | ???? # ?????????????" | | ????#+?#?#########"#/##########? ? ??# ???????" | | ??? ?? ? ???# #????? ????????????? | | #?? ??????#?# ##?????#+#????????????? | | #?? ???????#??# [ ##???????????????????#? | | ?#??? ????????# #??????? ?????????????? | | ????? ???????# """ """ ##???????#?#??????????? | | ?????? ????#??# ! """ """ #????##??????? ???#???? | +----------------------------------------------------+ Best States ------------- Heat Dissipation 49 Energy Generation 30 Energy Capacity 310 Matter Stores 300 Matter Capacity 300 Sight Range 16 Terrain Scan Range 30 Terrain Scan Density 1210 Armor Coverage 800 Resistance: KI 20 Resistance: TH 20 Resistance: EM 15 Evasion (%) 55 Targeting Accuracy 5 Recoil Reduction 3 Item Schematics ----------------- None Robot Schematics ------------------ None Fabricated ------------ Nothing Repaired ---------- Nothing Alien Tech Used ----------------- None Achievements -------------- None Challenges ------------ None RPGLIKE | -11 -10 -10 -10 -8 -8 -6 --------- Run | Yrd Mat Min Sub Rec Scr Fac Levels Raised 8 | . . 1 2 . 1 4 XP Earned 15317 | 3000 1375 1100 2050 1300 1163 5329 XP Spent 9770 | 500 1750 1800 800 . 500 4420 Upgrades 30 | 1 4 4 1 . 2 18 Power Slot 1 | . . 1 . . . . Propulsion Slot 1 | . 1 . . . . . Utility Slot 2 | . 1 . . . . 1 Weapon Slot 2 | 1 . . 1 . . . Core Integrity 6 | . . . . . . 6 Heat Dissipation 4 | . . . . . . 4 Inventory Capacity 3 | . 2 1 . . . . Ranged Accuracy 2 | . . 1 . . . 1 Melee Accuracy 2 | . . . . . . 2 KI Resistance % 1 | . . . . . 1 . TH Resistance % 4 | . . 1 . . 1 2 KI Damage % 2 | . . . . . . 2 Protomatter Created 1208 | . 123 45 174 45 371 450 Integrity Restored 2304 | . 357 111 261 . 546 1029 Core 2188 | . 336 76 201 . 546 1029 Parts 116 | . 21 35 60 . . . Protomatter Decayed 10084 | . 3 6 160 68 9700 147 Game ------ Seed PotentialSmallDriveblaster Manual? 0 Play Time 01:28:55 Cumulative 445.5 hours Start 2025.08.22 @ 00:11:02 End 2025.08.22 @ 01:46:27 Sessions 1 Manual Loads 0 Difficulty Rogue Special Mode Winter2019/RPGLIKE Game No. 256 Rogue 256 Adventurer 0 Explorer 0 Win Type - Total 11 Types 10/0/1/0/0/0/0/0/0/0 Lore% 76 Gallery% 68 Achievement% 55 Wizard Run 0 Options --------- Layout 1 ASCII 0 Keyboard 0 Movement Numpad Keybinds 0 Fullscreen 1 Font 24/Smallcaps Map View 50x35 Zoom Use 0% Tactical HUD 1 Map Filters NONE Filters NONE Steam 1 RUN: 8a173614-c220-44c9-a49b-bd170c4f5334